bitfinex/quotes_ETHUSD_20260307
["timestamp","ask_amount","ask_price","bid_price","bid_amount"]
[1772894617509,3.02198251,1985.3,1985.1,1.72890305]
[1772894618010,3.02198251,1985.3,1985.1,1.72888891]
[1772894618182,0.50056295,1985.4,1985.1,1.72888891]
[1772894619808,0.002,1985.2,1985.1,1.72888891]
[1772894620707,0.50056295,1985.2,1985.1,0.001]
[1772894620918,0.50056295,1985.2,1984.9,0.001]
[1772894621901,0.49856295,1985.0,1984.7,0.001]
[1772894624298,0.49856295,1984.8,1984.7,0.001]
[1772894627821,1.7581357,1984.8,1984.7,0.001]
[1772894628020,0.49856295,1984.7,1984.5,0.001]
[1772894628623,1.92656295,1985.1,1984.5,0.46952066]
[1772894628931,0.49856295,1985.0,1984.5,0.46952066]
[1772894629295,3.1928551,1985.3,1984.6,0.46852066]
[1772894629604,3.19284392,1985.3,1984.6,0.46852066]
[1772894629912,1.93356295,1985.3,1984.8,0.46852066]
[1772894630427,3.19282439,1985.3,1984.8,0.46852066]
[1772894630623,1.93356295,1985.3,1984.8,0.46852066]
[1772894630818,3.1928202,1985.3,1984.8,0.46852066]
[1772894632425,3.1928202,1985.3,1984.9,0.46852066]
[1772894632726,0.002,1985.0,1984.9,0.46852066]
[1772894632923,0.50056295,1985.0,1984.7,1.26063533]
[1772894633227,0.50056295,1985.0,1984.7,1.72915599]
[1772894633622,0.002,1985.0,1984.7,1.26063533]
[1772894633809,0.002,1985.0,1984.8,0.46852066]
[1772894635703,0.50056295,1985.0,1984.7,0.001]
[1772894639336,0.49856295,1984.9,1984.7,0.001]
[1772894639832,0.49856295,1984.9,1984.5,1.26075962]
[1772894640033,0.49856295,1984.9,1984.5,1.72928028]
[1772894640840,0.002,1985.0,1984.6,0.45142695]
[1772894641831,1.26144893,1985.0,1984.6,0.45142695]
[1772894643455,1.26144893,1985.0,1984.6,1.71112364]
[1772894643641,0.002,1985.0,1984.6,1.71112364]
[1772894643829,0.002,1985.0,1984.6,0.45142695]
[1772894644134,0.47632021,1985.0,1984.7,0.001]
[1772894644335,0.002,1984.9,1984.7,0.001]
[1772894644737,0.47632021,1984.9,1984.7,0.001]
[1772894645312,0.47432021,1984.8,1984.5,0.001]
[1772894647222,1.73391064,1984.8,1984.5,0.001]
[1772894647426,0.47432021,1984.8,1984.5,0.001]
[1772894647940,1.73389395,1984.8,1984.5,0.001]
[1772894648126,0.47432021,1984.8,1984.5,0.001]
[1772894649041,1.73389379,1984.8,1984.5,0.001]
[1772894650424,0.47432021,1984.7,1984.5,0.001]
[1772894651717,0.47432021,1984.6,1984.5,0.001]
[1772894651916,0.002,1984.9,1984.5,0.48937309]
[1772894652436,0.47632021,1984.9,1984.5,0.48937309]
[1772894652744,1.73583978,1984.9,1984.5,0.48937309]
[1772894652944,0.47432021,1984.8,1984.5,0.48937309]
[1772894653246,0.47432021,1984.8,1984.5,0.001]
[1772894654361,0.47432021,1984.8,1984.5,0.48937309]
[1772894656054,0.47432021,1984.8,1984.6,0.001]
[1772894656252,1.26153834,1984.9,1984.4,0.48937309]
[1772894656452,1.73585855,1984.9,1984.5,0.48837309]
[1772894656949,1.26153834,1984.9,1984.5,0.48837309]
[1772894657151,0.47432021,1984.8,1984.5,0.48837309]
[1772894657558,1.26153834,1984.9,1984.5,0.48837309]
[1772894657729,1.73585855,1984.9,1984.5,0.48837309]
[1772894658759,1.73585855,1984.9,1984.6,0.48837309]
[1772894658760,0.002,1984.9,1984.6,0.48837309]
[1772894659458,1.26151435,1984.9,1984.6,0.48837309]
[1772894659653,0.002,1984.9,1984.6,0.48837309]
[1772894660159,0.47632021,1984.9,1984.6,0.48837309]
[1772894661663,0.47432021,1984.8,1984.4,1.74915588]
[1772894662159,0.47432021,1984.8,1984.4,0.48937309]
[1772894663966,1.73392333,1984.8,1984.4,0.48937309]
[1772894664448,0.002,1984.9,1984.4,0.48937309]
[1772894664642,1.73584737,1984.9,1984.5,0.48837309]
[1772894665649,0.47432021,1984.8,1984.4,0.001]
[1772894666254,1.25963621,1984.7,1984.4,0.001]
[1772894666564,1.73395642,1984.7,1984.4,0.001]
[1772894668575,1.73395642,1984.7,1984.6,0.001]
[1772894672783,5.03980412,1985.0,1984.6,0.001]
[1772894672784,0.002,1985.0,1984.6,0.001]
[1772894672982,0.002,1985.1,1984.9,0.48023072]
[1772894675995,0.48634359,1985.1,1984.7,0.48023072]
[1772894678182,0.48634359,1985.1,1984.7,1.73985353]
[1772894678365,0.48234359,1985.1,1984.7,1.73985353]
[1772894680581,0.48234359,1985.1,1984.7,1.74085353]
[1772894680879,0.002,1985.0,1984.7,1.74085353]
[1772894681781,0.002,1985.0,1984.8,0.48023072]
[1772894682978,0.002,1985.0,1984.9,0.48023072]
[1772894683165,0.002,1985.1,1984.9,0.48023072]
[1772894683166,0.004,1985.1,1984.9,0.48023072]
[1772894685386,0.002,1985.2,1985.0,0.48023072]
[1772894686282,0.002,1985.2,1984.9,1.25950781]
[1772894686283,0.48234359,1985.2,1984.9,1.25950781]
[1772894686594,0.48234359,1985.2,1984.8,1.73977662]
[1772894689894,1.74169476,1985.2,1984.8,0.48023072]
[1772894690089,0.48034359,1985.1,1984.7,1.26059585]
[1772894690796,0.48034359,1985.1,1984.7,1.74082657]
[1772894691273,0.48034359,1985.1,1984.7,1.74086561]
[1772894692281,0.48034359,1985.1,1984.8,0.48023072]
[1772894692603,0.002,1985.0,1984.8,0.48023072]
[1772894693208,0.48234359,1985.0,1984.7,1.26063489]
[1772894693412,0.48234359,1985.0,1984.7,1.74086561]
[1772894695899,0.48234359,1985.0,1984.7,0.48123072]
[1772894696104,0.48234359,1985.0,1984.7,1.74085966]
[1772894697094,0.48234359,1985.0,1984.7,0.48123072]
[1772894699427,1.74181105,1985.0,1984.7,0.48123072]
[1772894699632,0.48234359,1985.0,1984.7,0.48123072]
[1772894701533,0.48234359,1985.0,1984.7,1.74086001]
[1772894701739,0.002,1985.0,1984.8,0.46153128]
[1772894703728,5.50681038,1985.2,1984.8,0.49791286]
[1772894703729,0.002,1985.2,1984.8,0.49791286]
[1772894704549,0.002,1985.2,1985.0,0.49791286]
[1772894704699,0.002,1985.1,1985.0,0.49791286]
[1772894705026,0.49408474,1985.1,1984.9,0.001]
[1772894707139,0.002,1985.1,1984.9,0.49891286]
[1772894709440,0.002,1985.3,1985.1,0.49791286]
[1772894710132,0.002,1985.3,1985.2,0.49791286]
[1772894712237,0.002,1985.3,1985.0,5.03775727]
[1772894712561,0.002,1985.3,1985.1,0.49791286]
[1772894714973,0.002,1985.3,1985.1,1.75724675]
[1772894717176,0.002,1985.4,1985.2,0.49791286]
[1772894717359,0.002,1985.6,1985.2,0.49791286]
[1772894717953,0.002,1985.3,1985.2,0.49791286]
[1772894718159,0.002,1985.5,1985.3,0.49791286]
[1772894718365,0.002,1985.6,1985.2,0.49791286]
[1772894720251,0.002,1985.6,1985.4,0.49791286]
[1772894720446,0.002,1985.7,1985.3,1.25925552]
[1772894720678,0.002,1985.7,1985.4,0.49791286]
[1772894721676,0.002,1985.7,1985.5,0.49791286]
[1772894722075,1.75083421,1986.1,1985.4,1.258]
[1772894722275,0.49208474,1986.0,1985.7,0.49791286]
[1772894724356,0.49208474,1986.0,1985.7,1.75690856]
[1772894724895,0.49208474,1986.1,1985.8,0.49791286]
[1772894725274,0.49208474,1986.1,1985.7,1.2589957]
[1772894725466,0.49208474,1986.1,1985.6,1.75693033]
[1772894726382,0.49208474,1986.1,1985.6,1.25901747]
[1772894726590,0.49208474,1986.1,1985.7,0.49791286]
[1772894726959,0.49208474,1986.1,1985.7,0.42948677]
[1772894727166,1.7507498,1986.3,1985.7,0.42948677]
[1772894727681,0.49208474,1986.2,1985.7,0.42948677]
[1772894728489,1.75077135,1986.2,1985.8,1.69480035]
[1772894729115,0.49208474,1986.1,1985.8,0.43586189]
[1772894729416,0.49208474,1986.1,1985.7,1.6948186]
[1772894729617,5.03448717,1986.3,1985.6,1.25901911]
[1772894729618,0.49208474,1986.3,1985.6,1.25901911]
[1772894729817,0.49208474,1986.3,1985.6,1.69491478]
[1772894730013,0.002,1986.1,1985.6,0.43586189]
[1772894730212,0.49208474,1986.0,1985.6,0.43586189]
[1772894730515,0.49208474,1985.8,1985.3,0.001]
[1772894730719,0.49208474,1985.8,1985.3,0.43686189]
[1772894730890,0.49208474,1985.8,1985.3,0.001]
[1772894731689,0.49208474,1985.8,1985.3,1.26024702]
[1772894732297,0.49208474,1985.8,1985.3,0.001]
[1772894733724,0.46531854,1985.6,1985.3,0.001]
[1772894735889,0.46531854,1985.5,1985.3,0.001]
[1772894738228,0.46531854,1985.4,1985.3,0.001]
[1772894740538,5.03576625,1985.8,1985.3,0.43686189]
[1772894740539,0.46531854,1985.8,1985.3,0.43686189]
[1772894741441,0.46531854,1986.0,1985.3,0.43686189]
[1772894742721,0.46531854,1986.0,1985.5,0.43586189]
[1772894742922,0.002,1985.7,1985.5,0.43586189]
[1772894743118,0.002,1985.8,1985.5,0.43386189]
[1772894745263,0.002,1985.8,1985.7,0.43386189]
[1772894745767,0.002,1986.0,1985.7,0.43386189]
[1772894746136,0.002,1986.0,1985.6,1.25906526]
[1772894746334,0.004,1986.0,1985.6,1.25906526]
[1772894746535,0.46931854,1986.0,1985.6,1.25906526]
[1772894746863,0.46931854,1986.0,1985.5,5.03626107]
[1772894746864,0.46731854,1985.9,1985.5,1.25908165]
[1772894747065,0.46731854,1985.9,1985.5,0.43386189]
[1772894747372,0.002,1985.9,1985.5,0.43386189]
[1772894747663,0.002,1986.0,1985.5,0.43386189]
[1772894747867,0.004,1986.0,1985.5,0.43386189]
[1772894748367,0.46731854,1985.9,1985.5,0.43386189]
[1772894749163,0.46731854,1985.9,1985.5,1.69295455]
[1772894749365,0.002,1985.8,1985.6,0.43386189]
[1772894749676,1.72613403,1986.0,1985.6,0.43386189]
[1772894749969,0.46731854,1985.9,1985.5,1.25909266]
[1772894750575,0.002,1985.8,1985.5,1.25909266]
[1772894750960,0.46531854,1985.9,1985.4,1.26014879]
[1772894751382,0.46731854,1986.0,1985.4,1.26014879]
[1772894751588,0.46731854,1986.0,1985.5,0.4852347]
[1772894752095,1.72613378,1986.0,1985.5,0.4852347]
[1772894752799,0.46531854,1985.9,1985.4,1.26014879]
[1772894752993,0.46531854,1985.9,1985.4,0.001]
[1772894753378,0.46531854,1985.7,1985.4,0.001]
[1772894754065,1.72419919,1985.9,1985.4,0.4862347]
[1772894754492,0.46531854,1985.8,1985.4,0.4862347]
[1772894755884,0.46531854,1985.7,1985.4,0.001]
[1772894758009,0.46531854,1985.6,1985.4,0.001]
[1772894760637,1.74597752,1985.5,1985.4,0.001]
[1772894760835,0.48684884,1985.5,1985.4,0.001]
[1772894762510,0.46405565,1985.3,1985.2,0.001]
[1772894765450,1.72331117,1985.3,1985.2,0.001]
[1772894765618,0.46405565,1985.3,1985.2,0.001]
[1772894765821,1.424,1985.7,1985.2,0.001]
[1772894766036,0.46405565,1985.6,1985.2,0.48006605]
[1772894767546,1.25912868,1985.5,1985.1,0.001]
[1772894767721,0.46405565,1985.4,1985.1,0.001]
[1772894768627,0.46405565,1985.4,1985.3,0.001]
[1772894768828,0.46405565,1985.4,1985.1,0.001]
[1772894769023,0.46405565,1985.4,1985.2,0.001]
[1772894770241,1.72331117,1985.3,1985.2,0.001]
[1772894773460,0.46405565,1985.3,1985.2,0.001]
[1772894774328,1.72331117,1985.3,1985.2,0.001]
[1772894778160,0.002,1985.5,1985.2,0.001]
[1772894778161,3.15919298,1985.5,1985.2,0.001]
[1772894778561,0.46405565,1985.4,1985.2,0.001]
[1772894779955,1.72327152,1985.4,1985.2,0.001]
[1772894780552,0.46405565,1985.4,1985.2,0.001]
[1772894780753,0.46405565,1985.4,1985.3,0.001]
[1772894781565,1.72324775,1985.4,1985.3,0.001]
[1772894782357,0.46405565,1985.4,1985.3,0.001]
[1772894782673,1.72324775,1985.4,1985.3,0.001]
[1772894788777,0.002,1985.5,1985.3,0.001]
[1772894788985,1.44,1985.4,1985.3,0.001]
[1772894789475,0.46605565,1985.8,1985.3,0.48006605]
[1772894789665,1.25900186,1985.7,1985.3,0.48006605]
[1772894790779,1.72305751,1985.7,1985.3,0.48006605]
[1772894791357,0.46405565,1985.7,1985.4,1.2591921]
[1772894791560,9.46443136,1985.8,1985.4,0.47906605]
[1772894791774,6.2994176,1985.7,1985.4,0.47906605]
[1772894792957,7.55843685,1985.7,1985.4,0.30384305]
[1772894793161,0.002,1985.5,1985.4,0.30384305]
[1772894793482,0.002,1985.5,1985.4,1.56303515]
[1772894793779,6.3014176,1985.7,1985.5,0.45386693]
[1772894793987,0.002,1985.7,1985.5,0.45386693]
[1772894794288,0.002,1985.8,1985.6,0.45386693]
[1772894795052,0.002,1985.8,1985.7,0.45386693]
[1772894797379,0.002,1985.8,1985.7,1.71286879]
[1772894799411,0.002,1985.9,1985.7,1.71286879]
[1772894799719,0.002,1986.0,1985.8,0.45386693]
[1772894799885,6.2994176,1985.9,1985.8,0.45386693]
[1772894800208,6.2994176,1985.9,1985.6,1.25903721]
[1772894800407,0.46800936,1986.0,1985.6,1.71290414]
[1772894800611,6.76742696,1986.0,1985.6,1.71290414]
[1772894800814,6.76742696,1986.0,1985.3,0.001]
[1772894800815,0.46600936,1985.8,1985.3,1.71407384]
[1772894801001,0.46600936,1985.8,1985.4,0.45386693]
[1772894801402,6.2994176,1985.8,1985.4,0.45386693]
[1772894801602,6.2994176,1985.8,1985.5,1.25912868]
[1772894801802,6.2994176,1985.8,1985.6,0.45386693]
[1772894805729,0.002,1985.7,1985.6,0.45386693]
[1772894806318,0.46600936,1985.6,1985.5,0.001]
[1772894806519,0.46600936,1985.6,1985.4,0.001]
[1772894806726,6.2984176,1985.5,1985.4,1.71405351]
[1772894806925,6.2984176,1985.6,1985.4,1.71405351]
[1772894807528,0.002,1985.7,1985.5,0.45386693]
[1772894807825,6.2984176,1985.6,1985.5,0.45386693]
[1772894808027,0.002,1985.7,1985.5,0.45386693]
[1772894808209,0.46600936,1985.6,1985.4,0.001]
[1772894813036,0.46800936,1985.7,1985.4,0.45486693]
[1772894815938,1.72701658,1985.7,1985.4,0.001]
[1772894816340,0.46600936,1985.6,1985.4,0.001]
[1772894817960,0.46600936,1985.6,1985.5,0.001]
[1772894818263,0.46800936,1985.6,1985.5,0.001]
[1772894818760,1.72707462,1985.6,1985.5,0.001]
[1772894818973,0.46800936,1985.6,1985.5,0.001]
[1772894820578,0.47693986,1985.5,1985.3,0.001]
[1772894823366,0.002,1985.6,1985.3,0.48867332]
[1772894823667,1.451,1985.6,1985.3,0.48867332]
[1772894825173,0.002,1985.6,1985.3,0.48867332]
[1772894825378,0.002,1985.6,1985.5,0.48767332]
[1772894825579,0.002,1985.6,1985.4,1.74686542]
[1772894825871,0.002,1985.6,1985.4,1.2591921]
[1772894826053,0.002,1985.6,1985.4,1.74686542]
[1772894826768,0.46059731,1985.6,1985.3,0.001]
[1772894826976,0.46059731,1985.6,1985.3,1.26024643]
[1772894827546,0.45859731,1985.5,1985.3,0.001]
[1772894828663,0.45859731,1985.4,1985.1,0.001]
[1772894829581,0.45859731,1985.2,1985.1,0.001]
[1772894830078,3.15883182,1985.4,1985.1,0.001]
[1772894830279,0.45859731,1985.3,1985.1,0.001]
[1772894831571,1.25931896,1985.2,1985.1,0.001]
[1772894831779,1.71791627,1985.2,1985.1,0.001]
[1772894832280,0.45859731,1985.2,1985.1,0.001]
[1772894834351,1.71791627,1985.2,1985.1,0.001]
[1772894837080,0.45859731,1985.2,1985.1,0.001]
[1772894837288,1.25929931,1985.3,1985.1,0.001]
[1772894837457,1.71789662,1985.3,1985.1,0.001]
[1772894838690,0.45859731,1985.2,1985.0,0.001]
[1772894840257,1.71797314,1985.2,1985.0,0.001]
[1772894840655,0.45859731,1985.1,1985.0,0.001]
[1772894841280,0.45859731,1985.1,1984.8,0.001]
[1772894841472,1.90659731,1985.0,1984.8,0.001]
[1772894843091,0.45859731,1984.9,1984.8,0.001]
[1772894845883,1.7181066,1984.9,1984.8,0.001]
[1772894846887,1.71798289,1985.1,1984.8,0.001]
[1772894847064,1.451,1985.0,1984.8,0.48867332]
[1772894848790,1.452,1985.0,1984.8,0.48867332]
[1772894851065,1.25938558,1985.1,1984.8,0.48867332]
[1772894851269,2.71238558,1985.1,1984.8,0.48867332]
[1772894851764,3.17098289,1985.1,1984.8,0.48867332]
[1772894851967,3.17098289,1985.1,1984.8,0.001]
[1772894852367,3.17098289,1985.1,1984.8,0.47820683]
[1772894853402,3.17421793,1985.1,1984.8,0.001]
[1772894857302,3.17421793,1985.1,1984.9,0.001]
[1772894857495,0.002,1985.0,1984.9,0.001]
[1772894863394,0.002,1985.1,1985.0,0.47720683]
[1772894863589,2.71838239,1985.1,1985.0,0.47720683]
[1772894864194,2.71838239,1985.1,1984.9,0.0497506]
[1772894867005,0.4756247,1985.0,1984.7,0.001]
[1772894867707,1.25950929,1984.9,1984.7,0.001]
[1772894867909,0.4756247,1984.8,1984.7,0.001]
[1772894870614,1.73519745,1984.8,1984.7,0.001]
[1772894871496,0.4751247,1984.7,1984.5,0.001]
[1772894871706,1.459,1984.7,1984.5,0.001]
[1772894872007,0.002,1985.0,1984.5,0.0507506]
[1772894872207,1.461,1985.0,1984.5,0.0507506]
[1772894873314,3.19557993,1985.0,1984.7,0.0497506]
[1772894875698,3.19557993,1985.0,1984.6,0.0497506]
[1772894875892,0.4751247,1984.9,1984.6,0.0497506]
[1772894876916,0.4751247,1984.9,1984.5,0.001]
[1772894877289,0.4751247,1984.9,1984.5,0.0507506]
[1772894878302,0.4751247,1984.9,1984.5,1.31049603]
[1772894878967,0.4751247,1984.9,1984.5,0.0507506]
[1772894879092,1.73465059,1984.9,1984.5,1.31050015]
[1772894879292,0.4751247,1984.9,1984.5,1.31050015]
[1772894880621,0.002,1985.0,1984.6,0.0497506]
[1772894881023,0.47994529,1985.0,1984.6,0.0497506]
[1772894881324,0.47794529,1984.9,1984.5,0.001]
[1772894881702,0.47794529,1984.7,1984.3,0.001]
[1772894881902,0.47794529,1984.5,1984.3,0.001]
[1772894882693,0.4746247,1984.4,1984.3,0.001]
[1772894883213,0.4746247,1984.4,1983.5,5.04108484]
[1772894883418,0.4746247,1984.4,1983.3,0.0507506]
[1772894883419,0.4746247,1984.4,1983.7,1.76231528]
[1772894883628,0.4746247,1984.4,1983.5,0.0507506]
[1772894884713,0.4746247,1984.2,1983.6,0.0507506]
[1772894884905,0.4746247,1984.2,1983.1,2.48283729]
[1772894884906,0.4746247,1984.0,1983.3,1.26048804]
[1772894885228,0.4746247,1984.0,1983.3,1.31123864]
[1772894885632,0.4746247,1984.0,1983.4,1.71156468]
[1772894885832,0.4746247,1984.0,1983.2,1.26058229]
[1772894886032,0.4746247,1984.0,1983.2,1.31133289]
[1772894886220,0.4746247,1984.0,1983.3,0.0507506]
[1772894886448,0.4746247,1984.0,1983.3,1.76231528]
[1772894886925,0.4746247,1983.8,1983.3,3.02283001]
[1772894887537,0.4746247,1983.8,1983.3,1.76231528]
[1772894887736,0.4746247,1983.8,1983.4,1.71156468]
[1772894887904,0.4746247,1983.8,1983.3,1.71156468]
[1772894888301,0.4746247,1983.8,1983.4,0.0507506]
[1772894888506,1.9216247,1983.8,1983.4,0.0507506]
[1772894889024,0.4746247,1983.7,1983.2,0.0507506]
[1772894889241,0.4746247,1983.7,1983.0,0.0507506]
[1772894889412,0.4746247,1983.7,1983.1,0.0507506]
[1772894889613,1.9226247,1984.0,1983.2,0.0507506]
[1772894889938,0.4746247,1984.1,1983.3,0.0507506]
[1772894890139,0.6020697,1984.0,1983.4,0.0507506]
[1772894890339,0.6020697,1984.0,1983.5,0.0507506]
[1772894891739,1.0766944,1984.0,1983.6,1.26033474]
[1772894891918,1.0766944,1984.0,1983.7,0.0507506]
[1772894892430,0.5513191,1984.0,1983.9,0.0507506]
[1772894894348,0.5513191,1984.0,1983.9,1.76231528]
[1772894899721,0.5513191,1984.0,1983.9,0.0507506]
[1772894900653,0.5513191,1984.0,1983.5,0.001]
[1772894905828,0.5513191,1984.0,1983.7,1.26027121]
[1772894908054,0.002,1983.9,1983.7,1.26027121]
[1772894910857,0.002,1983.9,1983.8,1.71156468]
[1772894912960,0.002,1984.0,1983.8,2.97177236]
[1772894914562,1.2619399,1984.3,1983.9,1.71156468]
[1772894914563,0.502,1984.3,1983.9,1.71156468]
[1772894914859,0.002,1984.6,1984.0,1.26008064]
[1772894915027,0.502,1984.6,1984.0,2.97164532]
[1772894915229,0.502,1984.6,1984.1,1.71156468]
[1772894915663,0.502,1984.6,1984.2,1.71156468]
[1772894915960,0.502,1984.6,1984.1,1.71156468]
[1772894916658,0.502,1984.6,1984.2,1.71156468]
[1772894918463,0.5,1984.5,1984.2,1.71156468]
[1772894919163,0.502,1984.6,1984.3,1.71156468]
[1772894919364,0.502,1984.6,1984.0,1.71156468]
[1772894920567,0.502,1984.6,1984.1,1.26001713]
[1772894922038,0.002,1984.5,1984.1,1.26001713]
[1772894923780,0.502,1984.5,1984.2,1.71156468]
[1772894925441,0.5,1984.7,1984.3,1.71156468]
[1772894925766,0.5,1984.7,1984.3,1.25989013]
[1772894926143,0.5,1984.7,1984.4,1.71156468]
[1772894928347,0.5,1984.7,1984.4,2.97135108]
[1772894928967,0.5,1984.7,1984.5,1.71156468]
[1772894929676,0.5,1984.7,1984.4,1.2597864]
[1772894929873,0.5,1984.7,1984.5,1.71156468]
[1772894930568,0.5,1984.6,1984.0,1.26008064]
[1772894930780,0.5,1984.6,1984.1,1.71156468]
[1772894931492,0.5,1984.6,1984.2,1.71156468]
[1772894931676,0.5,1984.7,1984.1,1.71156468]
[1772894932574,0.5,1984.7,1984.2,1.25995363]
[1772894934345,0.5,1984.7,1984.3,0.001]
[1772894934547,0.002,1984.6,1984.3,0.001]
[1772894936963,0.39710991,1984.8,1984.4,2.97132984]
[1772894937151,0.5,1984.7,1984.4,2.97132984]
[1772894937859,0.89710991,1984.8,1984.4,2.97132984]
[1772894938059,0.89710991,1984.8,1984.5,1.71156468]
[1772894938261,0.5,1984.7,1984.5,1.71156468]
[1772894945181,0.49840365,1984.6,1984.5,1.51156468]
[1772894946855,0.49840365,1984.5,1984.3,0.001]
[1772894947058,0.49840365,1984.5,1984.4,1.51156468]
[1772894948367,0.49840365,1984.5,1984.3,0.001]
[1772894948567,0.49840365,1984.5,1984.4,1.51156468]
[1772894948969,0.002,1984.6,1984.4,2.97139132]
[1772894949180,0.002,1984.6,1984.5,1.51256468]
[1772894951885,0.50040365,1984.6,1984.5,1.51256468]
[1772894952705,0.50040365,1984.6,1984.5,0.32659438]
[1772894953199,0.50040365,1984.6,1984.3,0.001]
[1772894953376,0.49840365,1984.5,1984.3,0.001]
[1772894953894,1.26171689,1984.6,1984.3,0.401]
[1772894953895,0.002,1984.6,1984.3,0.401]
[1772894954369,0.002,1984.7,1984.4,0.4]
[1772894956098,0.50040365,1984.9,1984.6,0.49236796]
[1772894956305,0.002,1984.9,1984.6,0.49236796]
[1772894958197,0.002,1984.9,1984.6,1.25968719]
[1772894958396,0.002,1984.9,1984.7,0.49236796]
[1772894961599,0.50040365,1985.1,1984.3,5.04054354]
[1772894961600,0.002,1985.1,1984.3,5.04054354]
[1772894961802,0.002,1985.3,1984.6,0.49236796]
[1772894962300,0.41335865,1985.5,1984.7,0.49236796]
[1772894962474,0.49840365,1985.4,1984.7,0.49336796]
[1772894962798,0.002,1984.8,1984.7,0.49336796]
[1772894962977,0.49840365,1985.4,1984.8,0.49236796]
[1772894963298,0.002,1985.6,1985.1,0.49236796]
[1772894964170,0.49840365,1985.5,1985.1,0.49236796]
[1772894964399,0.49840365,1985.5,1984.9,1.75187725]
[1772894964568,0.49840365,1985.5,1985.0,0.49236796]
[1772894966400,0.49840365,1985.5,1985.1,1.25938239]
[1772894967103,0.49840365,1985.5,1985.2,0.49236796]
[1772894967506,0.49840365,1985.5,1985.1,1.75175035]
[1772894968019,1.26106688,1985.6,1985.1,1.75175035]
[1772894968020,0.50040365,1985.6,1985.2,0.49236796]
[1772894968479,0.50040365,1985.6,1985.3,0.49236796]
[1772894969810,0.002,1985.6,1985.3,0.49236796]
[1772894970418,0.49840365,1985.6,1985.3,0.49236796]
[1772894970616,0.49840365,1985.6,1985.2,1.25928119]
[1772894970778,0.49840365,1985.6,1985.3,0.49236796]
[1772894971598,0.49840365,1985.5,1985.1,1.75172235]
[1772894972183,1.9263313,1985.7,1985.2,0.48252434]
[1772894972602,1.9263313,1985.7,1985.3,1.25925552]
[1772894972805,0.4993313,1985.7,1985.4,0.48252434]
[1772894974394,0.002,1985.7,1985.4,0.48252434]
[1772894974810,0.002,1985.7,1985.4,1.74169958]
[1772894975023,0.002,1985.7,1985.5,0.48252434]
[1772894975510,0.002,1985.6,1985.5,0.48252434]
[1772894976718,0.002,1985.9,1985.5,0.48252434]
[1772894976899,0.002,1985.9,1985.6,0.48252434]
[1772894978791,0.002,1985.9,1985.6,1.74158578]
[1772894979217,0.4993313,1985.9,1985.6,1.74158578]
[1772894980521,0.002,1985.9,1985.7,0.48252434]
[1772894980833,0.90964803,1986.5,1985.8,1.25893846]
[1772894981137,0.90964803,1986.5,1985.9,0.48252434]
[1772894981138,0.4973313,1986.4,1985.9,0.48252434]
[1772894982796,0.4973313,1986.4,1986.0,1.25881168]
[1772894983119,0.90964803,1986.5,1986.1,0.48252434]
[1772894983329,0.4973313,1986.4,1986.1,0.48252434]
[1772894983627,0.4973313,1986.4,1986.0,1.25881168]
[1772894983926,0.4973313,1986.4,1986.0,1.74133602]
[1772894984314,0.4973313,1986.4,1986.1,0.48252434]
[1772894986128,0.4973313,1986.4,1986.2,1.25868492]
[1772894986327,0.4973313,1986.4,1986.1,1.74122322]
[1772894987228,0.90964803,1986.5,1986.2,0.48252434]
[1772894987541,0.002,1986.3,1986.1,1.74122322]
[1772894987696,0.4973313,1986.3,1986.0,0.48252434]
[1772894988325,0.4973313,1986.3,1985.9,1.2588211]
[1772894988527,0.4973313,1986.3,1985.9,1.74134544]
[1772894988900,0.4973313,1986.3,1986.0,0.48252434]
[1772894989101,0.002,1986.4,1986.0,0.48252434]
[1772894989301,0.90964803,1986.5,1986.0,0.48252434]
[1772894989617,2.16814563,1986.5,1986.0,0.48252434]
[1772894989820,0.4973313,1986.4,1986.0,0.48252434]
[1772894990217,0.4973313,1986.3,1985.9,1.2588211]
[1772894990419,0.4973313,1986.3,1985.8,1.74141601]
[1772894990620,1.25859826,1986.4,1985.2,0.001]
[1772894990621,0.4973313,1985.6,1985.2,0.001]
[1772894990803,1.25859826,1986.4,1985.3,0.48252434]
[1772894991001,0.002,1986.6,1985.5,0.48252434]
[1772894991203,4.75722853,1987.9,1985.9,0.5]
[1772894991551,0.8885489,1987.3,1985.9,0.5]
[1772894991730,0.8885489,1986.9,1985.9,0.5]
[1772894991934,1.394,1986.8,1985.9,0.5]
[1772894992512,1.25836814,1986.7,1986.0,0.5]
[1772894993722,2.14691704,1986.7,1985.8,0.5]
[1772894993926,0.8885489,1986.5,1985.8,0.5]
[1772894994124,1.25836814,1986.7,1985.8,0.5]
[1772894994125,2.14691704,1986.7,1985.8,0.5]
[1772894994635,0.8885489,1986.5,1985.5,0.5]
[1772894996107,2.14691704,1986.7,1985.5,0.5]
[1772894996308,1.25836814,1986.7,1985.5,0.5]
[1772894996504,1.25798822,1987.3,1985.7,0.5]
[1772894996715,2.62598822,1987.3,1985.9,0.5]
[1772894997034,1.25798822,1987.3,1985.9,0.5]
[1772894997635,1.25798822,1987.3,1986.3,0.5]
[1772894997840,1.25796509,1987.4,1986.3,0.5]
[1772894998229,1.366,1987.6,1986.3,0.5]
[1772894998415,0.8885489,1987.3,1986.3,0.5]
[1772894998736,1.25786163,1987.5,1986.5,0.5]
[1772895000731,1.368,1987.4,1986.6,0.5]
[1772895000930,0.002,1987.4,1986.6,0.5]
[1772895001136,1.368,1987.3,1986.6,0.5]
[1772895002133,0.002,1987.4,1986.6,0.5]
[1772895002354,1.376,1987.2,1986.6,0.5]
[1772895002640,1.25811484,1987.1,1986.2,0.5]
[1772895004753,5.03245936,1987.2,1986.4,0.5]
[1772895004960,5.03245936,1987.2,1986.2,0.5]
[1772895005555,1.389,1987.1,1986.2,0.5]
[1772895005756,5.03245936,1987.2,1986.2,0.5]
[1772895005960,1.392,1987.0,1986.2,0.5]
[1772895007151,1.25824148,1986.9,1986.2,0.5]
[1772895007355,1.25824148,1986.9,1986.1,0.001]
[1772895008553,3.47455887,1986.9,1986.1,0.001]
[1772895009529,1.405,1986.8,1986.1,0.501]